[Event "Romanian GP Final KO 2023"]
[Site "Alba Iulia"]
[Date "2023.12.05"]
[Round "1.3"]
[White "Toma, Radu-Cristian"]
[Black "Obada, Ema"]
[Result "0-1"]
[ECO "A08"]
[WhiteElo "2387"]
[BlackElo "2035"]
[Annotator "RC"]
[PlyCount "117"]
[EventDate "2023.12.04"]
[EventType "k.o."]
[EventCountry "ROU"]
[SourceTitle "playchess.com"]
[Source "ChessBase"]
[SourceQuality "1"]
[TimeControl "900+5"]

1. Nf3 {[%emt 0:10:12]} Nf6 {[%emt 0:11:11]} 2. g3 {[%emt 0:00:07]} e6 {[%emt 0:00:06]} 3. Bg2 {[%emt 0:00:06]} d5 {[%emt 0:00:06]} 4. O-O {[%emt 0:00:06]} c5 {[%emt 0:00:05]} 5. d3 {[%emt 0:00:06]} Nc6 {[%emt 0:00:07]} 6. Nbd2 {[%emt 0:00:07]} g6 {[%emt 0:00:05]} 7. e4 {[%emt 0:00:07]} Bg7 {[%emt 0:00:06]} 8. c3 {[%emt 0:00:07]} O-O {[%emt 0:00:07]} 9. Qe2 {[%emt 0:00:07]} b6 {[%emt 0:00:06]} 10. a4 {[%emt 0:00:11]} a5 {[%emt 0:00:06]} 11. Re1 {[%emt 0:00:13]} Ba6 {[%emt 0:00:06]} 12. Bf1 {[%emt 0:00:11]} Qc7 {[%emt 0:00:08]} 13. Qd1 {[%emt 0:00:14]} Rad8 {[%emt 0:00:07]} 14. Qb3 {[%emt 0:00:12]} Rfe8 {[%emt 0:00:07]} 15. Nb1 {[%emt 0:00:33]} e5 {[%emt 0:00:12]} 16. exd5 {[%emt 0:00:12]} Nxd5 {[%emt 0:00:06]} 17. Na3 {[%emt 0:00:09]} Nf6 {[%emt 0:00:24]} 18. Nb5 {[%emt 0:00:12]} Qd7 {[%emt 0:00:06]} 19. Ng5 {[%emt 0:00:27]} h6 {[%emt 0:00:06]} 20. Ne4 {[%emt 0:00:16]} Nxe4 {[%emt 0:00:12]} 21. dxe4 {[%emt 0:00:07]} Qe7 {[%emt 0:00:11]} 22. Be3 {[%emt 0:00:09]} Bc8 {[%emt 0:00:06]} 23. Bc4 {[%emt 0:00:07]} Qf6 {[%emt 0:00:15]} 24. Nc7 {[%emt 0:00:10]} Rf8 {[%emt 0:00:22]} 25. Be2 {[%emt 0:00:10]} Ne7 {[%emt 0:00:12]} 26. Rad1 {[%emt 0:00:09]} Qc6 {[%emt 0:00:07]} 27. Nd5 {[%emt 0:00:09]} Nxd5 {[%emt 0:02:28]} 28. Rxd5 {[%emt 0:00:09]} Be6 {[%emt 0:00:00]} 29. Bc4 {[%emt 0:00:20]} Bxd5 {[%emt 0:00:00]} 30. Bxd5 {[%emt 0:00:06]} Qc7 {[%emt 0:00:00]} 31. Qd1 {[%emt 0:00:08]} Kh7 {[%emt 0:00:00]} 32. Re2 {[%emt 0:00:08]} f5 {[%emt 0:00:00]} 33. c4 {[%emt 0:00:11]} f4 {[%emt 0:00:00]} 34. Bd2 {[%emt 0:00:06]} f3 {[%emt 0:00:00]} 35. Re3 {[%emt 0:00:06]} Qd7 {[%emt 0:00:00]} 36. Qf1 {[%emt 0:00:13]} h5 {[%emt 0:00:00]} 37. Rd3 {[%emt 0:00:06]} Qxa4 {[%emt 0:00:00]} 38. Bg5 {[%emt 0:00:08]} Rd6 {[%emt 0:00:00]} 39. Be7 {[%emt 0:00:07]} Rdf6 {[%emt 0:00:00]} 40. b3 {[%emt 0:00:21]} Qe8 {[%emt 0:00:00]} 41. Bxf8 {[%emt 0:00:07]} Qxf8 {[%emt 0:00:00]} 42. Qh3 {[%emt 0:00:07]} Kh6 {[%emt 0:00:00]} 43. g4 {[%emt 0:00:07]} Rf4 {[%emt 0:00:00]} 44. gxh5 {[%emt 0:00:08]} gxh5 {[%emt 0:00:00]} 45. Kf1 {[%emt 0:00:08]} Qf6 {[%emt 0:00:06]} 46. Bg8 {[%emt 0:00:07]} Qg5 {[%emt 0:00:17]} 47. Rxf3 {[%emt 0:00:16]} Rg4 {[%emt 0:00:11]} 48. Re3 {[%emt 0:00:12]} Bf6 {[%emt 0:00:14]} 49. Ke2 {[%emt 0:00:07]} Qxg8 {[%emt 0:00:06]} 50. Qf3 {[%emt 0:00:06]} Qg5 {[%emt 0:00:07]} 51. Rd3 {[%emt 0:00:06]} Rf4 {[%emt 0:00:06]} 52. Qh3 {[%emt 0:00:07]} Qg4+ {[%emt 0:00:05]} 53. Qxg4 {[%emt 0:00:07]} hxg4 {[%emt 0:00:06]} 54. Rd6 {[%emt 0:00:06]} Kg7 {[%emt 0:00:08]} 55. Rxb6 {[%emt 0:00:06]} Bh4 {[%emt 0:00:06]} 56. Re6 {[%emt 0:00:08]} Rxf2+ {[%emt 0:00:06]} 57. Ke3 {[%emt 0:00:06]} Rxh2 {[%emt 0:00:06]} 58. Rxe5 {[%emt 0:00:06]} g3 {[%emt 0:00:06]} 59. Rd5 {[%emt 0:00:38]} 0-1

[Event "Romanian GP Final KO 2023"]
[Site "Alba Iulia"]
[Date "2023.12.05"]
[Round "2.1"]
[White "Parligras, Mircea-Emilian"]
[Black "Nanu, Costica-Ciprian"]
[Result "1/2-1/2"]
[ECO "E16"]
[WhiteElo "2539"]
[BlackElo "2524"]
[Annotator "TA"]
[PlyCount "117"]
[EventDate "2023.12.04"]
[EventType "k.o."]
[EventCountry "ROU"]
[SourceTitle "playchess.com"]
[Source "ChessBase"]
[SourceQuality "1"]
[TimeControl "900+5"]

{[%evp 15,117,17,17,20,8,10,6,16,10,0,20,-4,0,-3,-4,-12,-11,-8,0,0,0,0,0,-32,-36,-55,-33,-77,-78,-90,-21,-11,-12,-14,-22,-84,-49,-42,-56,-43,-49,-48,0,0,0,0,0,0,0,0,3,3,97,34,97,97,97,97,98,99,96,85,95,85,85,85,85,0,0,0,0,0,0,0,0,0,0,0,0,0,0,0,0,0,0,0,0,0,0,0,0,0,0,0,0,0,0,0,0,0,0,0,0,0]} 1. d4 {[%emt 0:00:01]} Nf6 {[%emt 0:00:00]} 2. c4 {[%emt 0:00:02]} e6 {[%emt 0:00:01]} 3. Nf3 {[%emt 0:00:10]} b6 {[%emt 0:00:03]} 4. g3 {[%emt 0:00:17]} Bb4+ {[%emt 0:00:21]} 5. Bd2 {[%emt 0:00:04]} Be7 {[%emt 0:00:01]} 6. Nc3 {[%emt 0:00:36]} Bb7 {[%emt 0:00:04]} 7. Bg2 {[%emt 0:00:02]} O-O {[%emt 0:00:14]} 8. O-O {[%emt 0:00:13]} c6 {[%emt 0:00:19][%cal Bc7c6,Bc6d5][%mdl 32] 8...Na6 is not played anymore.} 9. e4 {[%emt 0:00:22] E16: Queen's Indian: 4 g3 Bb7 5 Bg2 Bb4+.} d5 $1 {[%emt 0:00:00]} 10. exd5 {[%emt 0:01:18]} cxd5 {[%emt 0:00:27]} 11. Ne5 {[%emt 0:00:08]} Nc6 {[%emt 0:01:44]} 12. Bf4 {[%emt 0:00:23]} Na5 {[%emt 0:00:54]} 13. Qa4 {[%emt 0:04:09]} dxc4 {[%emt 0:00:50]} 14. Bxb7 {[%emt 0:00:05]} Nxb7 {[%emt 0:00:01] [#]} 15. Qxc4 $146 {[%emt 0:00:37]} ({Predecessor:} 15. Rfe1 Na5 16. b4 cxb3 17. axb3 Nd5 18. Nxd5 Qxd5 19. b4 Nc4 20. Nc6 Bf6 21. b5 Rfe8 22. Qb3 {0-1 Kocur,M-Wagenaar,H NATO-ch 11th 2000 (7)}) 15... Na5 {[%emt 0:00:15]} 16. Qa4 {[%emt 0:01:11]} Rc8 {[%emt 0:02:05]} 17. Rac1 {[%emt 0:01:39]} Nd5 {[%emt 0:02:05]} 18. Bd2 {[%emt 0:00:02]} f6 {[%emt 0:01:12]} 19. Nd3 {[%emt 0:01:26]} Rc4 {[%emt 0:00:20]} 20. Qc2 {[%emt 0:01:18]} Rxd4 {[%emt 0:00:14] [#] And now ...Nxc3 would win.} 21. Ne2 {[%emt 0:00:11]} Rc4 {[%emt 0:00:13]} 22. Qb1 {[%emt 0:00:02]} Qd7 {[%emt 0:00:46]} (22... Rxc1 $17 23. Rxc1 Nb7) 23. Bxa5 $1 $11 {[%emt 0:00:08]} Rxc1 {[%emt 0:00:02]} 24. Rxc1 {[%emt 0:00:06]} bxa5 {[%emt 0:00:02]} 25. Qc2 {[%emt 0:00:40] Prevents Rc8} (25. Nc5 $11 Bxc5 26. Rxc5) 25... Rd8 {[%emt 0:00:46]} 26. Nc5 {[%emt 0:00:17]} Qc8 {[%emt 0:00:41]} 27. Qc4 {[%emt 0:00:19]} Bxc5 {[%emt 0:00:12]} 28. Qxc5 {[%emt 0:00:01]} Qxc5 {[%emt 0:00:13]} (28... Qa6 $15 29. Nd4 Rd7) 29. Rxc5 $15 {[%emt 0:00:01][%mdl 4096] Endgame KRN-KRN} a4 {[%emt 0:00:01]} 30. Ra5 {[%emt 0:00:06][%csl LRa4,LRa7]} Rb8 {[%emt 0:00:06]} 31. Nd4 {[%emt 0:00:24]} Rxb2 {[%emt 0:00:06]} 32. Nxe6 {[%emt 0:00:14]} Nc3 {[%emt 0:00:33]} 33. Rxa7 {[%emt 0:00:05]} Re2 {[%emt 0:00:09]} (33... h6 $11) 34. Rxg7+ $16 {[%emt 0:00:08]} Kh8 {[%emt 0:00:01]} 35. Rc7 $1 {[%emt 0:00:09][%cal Rc7c8] [#]} Rxe6 {[%emt 0:00:27]} 36. Rxc3 {[%emt 0:00:02] KR-KR} Re2 {[%emt 0:00:06]} 37. Ra3 {[%emt 0:00:06]} Re4 {[%emt 0:00:01]} 38. Re3 {[%emt 0:00:08]} Rb4 {[%emt 0:00:08]} 39. Re8+ {[%emt 0:00:08]} Kg7 {[%emt 0:00:01]} 40. Ra8 {[%emt 0:00:01]} h5 {[%emt 0:00:04]} 41. h4 {[%emt 0:00:06]} (41. Ra5 $16) 41... f5 $1 $11 {[%emt 0:00:22] The position is equal.} 42. Kg2 {[%emt 0:00:22]} f4 $1 {[%emt 0:00:07]} 43. Ra5 {[%emt 0:00:10]} fxg3 {[%emt 0:00:06]} 44. Kxg3 {[%emt 0:00:01]} Rg4+ {[%emt 0:00:15]} 45. Kh3 {[%emt 0:00:03] Threatens to win with Rg5+.} Rf4 {[%emt 0:00:04]} 46. Rxh5 {[%emt 0:00:15]} Rxf2 {[%emt 0:00:02]} 47. Rg5+ {[%emt 0:00:01]} Kh6 {[%emt 0:00:20]} 48. a3 {[%emt 0:00:09]} Ra2 {[%emt 0:00:25]} 49. Rg3 {[%emt 0:00:02]} Kh5 {[%emt 0:00:02]} 50. Rf3 {[%emt 0:00:15]} Rb2 {[%emt 0:00:02]} 51. Rf5+ {[%emt 0:00:11]} Kg6 {[%emt 0:00:04]} 52. Rf3 {[%emt 0:00:09]} (52. Rf4 $5) 52... Kh5 {[%emt 0:00:09]} 53. Kg3 {[%emt 0:00:05]} Rb3 {[%emt 0:00:01]} 54. Kf4 {[%emt 0:00:01]} Kxh4 {[%emt 0:00:20]} 55. Ke4 {[%emt 0:00:01] Rxb3 is the strong threat.} Rxf3 {[%emt 0:00:06]} 56. Kxf3 {[%emt 0:00:02]} Kg5 {[%emt 0:00:01]} 57. Ke4 {[%emt 0:00:01]} Kf6 {[%emt 0:00:01]} 58. Kd4 {[%emt 0:00:01]} Ke6 {[%emt 0:00:02]} 59. Ke4 {[%emt 0:00:46] Weighted Error Value: White=0.08 (flawless) /Black=0.10 (very precise)} 1/2-1/2

[Event "Romanian GP Final KO 2023"]
[Site "Alba Iulia"]
[Date "2023.12.05"]
[Round "2.1"]
[White "Gavrilescu, David"]
[Black "Chigaev, Maksim"]
[Result "1/2-1/2"]
[ECO "C50"]
[WhiteElo "2534"]
[BlackElo "2626"]
[Annotator "TA"]
[PlyCount "48"]
[EventDate "2023.12.04"]
[EventType "k.o."]
[EventCountry "ROU"]
[SourceTitle "playchess.com"]
[Source "ChessBase"]
[SourceQuality "1"]
[TimeControl "900+5"]

{[%evp 12,48,14,12,13,18,12,2,11,0,2,-26,0,-25,0,0,0,0,12,0,14,-24,-20,-16,0,-10,0,-1,0,0,0,-33,-25,-18,0,-5,0,0,0]} 1. e4 {[%emt 0:00:03]} e5 {[%emt 0:00:01]} 2. Nf3 {[%emt 0:00:02]} Nc6 {[%emt 0:00:01]} 3. Bc4 {[%emt 0:00:02]} Nf6 {[%emt 0:00:02]} 4. d3 {[%emt 0:00:03]} Bc5 {[%emt 0:00:01]} 5. Nc3 {[%emt 0:00:02]} d6 {[%emt 0:00:19]} 6. O-O {[%emt 0:00:22]} h6 {[%emt 0:00:11]} 7. Na4 {[%emt 0:00:08]} Bb6 {[%emt 0:00:02] C50: Hungarian Defence and Giuoco Pianissimo.} 8. a3 $1 {[%emt 0:01:13][%mdl 4] is more profitable than 8.Nxb6 at the moment.} O-O {[%emt 0:00:05]} 9. b4 {[%emt 0:00:13]} Ne7 {[%emt 0:00:20]} 10. h3 {[%emt 0:01:10]} Ng6 {[%emt 0:00:06]} 11. c3 {[%emt 0:00:04] [#]} Bd7 $146 {[%emt 0:00:19]} ({Predecessor:} 11... c6 12. Nxb6 axb6 13. Bb3 Re8 14. Re1 Be6 15. Bc2 d5 16. exd5 Nxd5 17. Bd2 Bf5 {½-½ Karjakin,S (2763)-Grischuk,A (2767) Candidates Tournament 2018 (3)}) 12. Ra2 {[%emt 0:00:54]} (12. Bb3 $5) 12... Nh7 {[%emt 0:00:36]} 13. Nxb6 {[%emt 0:00:13]} axb6 {[%emt 0:00:02]} 14. a4 {[%emt 0:00:02]} Qf6 {[%emt 0:01:09]} 15. Nh2 {[%emt 0:03:09]} Be6 {[%emt 0:01:11]} 16. Bxe6 {[%emt 0:00:20]} Qxe6 {[%emt 0:00:04]} 17. c4 {[%emt 0:00:08]} b5 {[%emt 0:01:41]} 18. Qc2 {[%emt 0:00:19]} bxa4 {[%emt 0:00:19]} 19. Rxa4 {[%emt 0:00:04]} Rxa4 {[%emt 0:00:01]} 20. Qxa4 {[%emt 0:00:01]} f5 {[%emt 0:00:04]} 21. exf5 {[%emt 0:00:36]} Qxf5 {[%emt 0:00:03]} 22. Qd1 {[%emt 0:00:09]} Nf6 {[%emt 0:00:29] The position is equal.} 23. Ng4 {[%emt 0:01:15][%cal Oc1h6]} Nxg4 {[%emt 0:01:38]} 24. hxg4 {[%emt 0:00:03]} Qf7 {[%emt 0:00:32] A rather calm draw.   Weighted Error Value: White=0.10 (very precise) /Black=0.09 (flawless)} 1/2-1/2

[Event "Romanian GP Final KO 2023"]
[Site "Alba Iulia"]
[Date "2023.12.05"]
[Round "2.1"]
[White "Kantor, Gergely"]
[Black "Ardelean, George-Catalin"]
[Result "1-0"]
[ECO "D31"]
[WhiteElo "2527"]
[BlackElo "2433"]
[Annotator "TA"]
[PlyCount "113"]
[EventDate "2023.12.04"]
[EventType "k.o."]
[EventCountry "ROU"]
[SourceTitle "playchess.com"]
[Source "ChessBase"]
[SourceQuality "1"]
[TimeControl "900+5"]

{[%evp 9,113,19,33,11,12,4,13,0,25,18,16,9,10,13,30,20,14,0,33,0,23,10,17,8,12,0,47,45,31,20,34,13,84,84,120,113,156,154,205,199,191,167,148,114,149,140,137,136,180,193,195,176,244,225,245,239,289,243,248,250,251,247,306,279,277,279,250,149,252,197,269,221,352,346,394,385,367,264,324,224,335,0,355,347,319,270,401,397,371,347,391,379,29989,1016,987,871,836,380,753,794,954,942,5438,5683,4132,1787]} 1. d4 {[%emt 0:00:02]} d5 {[%emt 0:00:01]} 2. c4 {[%emt 0:00:02]} e6 {[%emt 0:00:01]} 3. Nc3 {[%emt 0:00:01]} a6 {[%emt 0:00:03]} 4. cxd5 {[%emt 0:00:09]} exd5 {[%emt 0:00:02]} 5. Nf3 {[%emt 0:00:04]} c6 {[%emt 0:00:10]} 6. Qc2 {[%emt 0:00:06] D31: Queen's Gambit Declined: Semi-Slav without ...Nf6 (+ Marshall Gambit and Noteboom) and Exchange Variation lines without ...Nf6.} Bd6 {[%emt 0:00:13]} 7. e4 {[%emt 0:00:09]} dxe4 {[%emt 0:00:13]} 8. Nxe4 {[%emt 0:00:02] The position is equal.} Bb4+ {[%emt 0:00:11]} 9. Nc3 {[%emt 0:00:01]} Nf6 {[%emt 0:01:14]} 10. Bd3 {[%emt 0:00:02]} (10. a3 $5 {[%cal Ra3b4]} Bd6 11. Bc4 $14) 10... O-O {[%emt 0:00:21]} 11. O-O {[%emt 0:00:03]} h6 {[%emt 0:00:35] [#] Inhibits Bg5.} 12. a3 $146 {[%emt 0:00:12]} ({Predecessor:} 12. h3 Be6 13. Re1 Re8 14. Bf4 Nbd7 15. a3 Bf8 16. Ne5 Nd5 17. Nxd5 Bxd5 18. Re3 {1-0 Kantor,G (2561)-Kevlishvili,R (2536) Hollywood Masters op 2022 (8)}) 12... Bd6 {[%emt 0:01:11]} 13. Re1 {[%emt 0:00:02]} (13. Bc4 {looks sharper.} Bg4 14. Ne5 Nbd7 15. Re1) 13... Nbd7 {[%emt 0:00:42]} 14. h3 {[%emt 0:05:49]} Nb6 {[%emt 0:00:18]} 15. Ne5 {[%emt 0:00:01]} Nbd5 {[%emt 0:00:18]} 16. Qe2 {[%emt 0:00:50]} (16. Na4 {seems wilder.} Nh5 17. Bc4 Nhf4 18. Qe4) 16... Be6 {[%emt 0:01:20]} 17. Ne4 {[%emt 0:00:12]} Re8 {[%emt 0:02:14]} (17... Nxe4 $11 18. Qxe4 Nf6) 18. Nxd6 $14 {[%emt 0:01:12]} Qxd6 {[%emt 0:00:01]} 19. Qf3 {[%emt 0:00:01][%cal Oc1h6]} Rad8 {[%emt 0:02:33]} 20. Qg3 {[%emt 0:00:06]} Kf8 {[%emt 0:00:22]} (20... g5 $11 {keeps the balance.}) 21. Bd2 $16 {[%emt 0:00:14]} Bc8 {[%emt 0:00:30]} 22. Rac1 {[%emt 0:00:34] White has more active pieces.} Re7 {[%emt 0:01:17]} 23. Ba5 {[%emt 0:00:14]} Kg8 {[%emt 0:01:10]} (23... Rc7 $16 {is a better defense.} 24. Qf3 (24. Bxc7 Qxc7 25. Rcd1 Be6 $16) 24... Be6) 24. Bxd8 $18 {[%emt 0:00:39]} Qxd8 {[%emt 0:00:01]} 25. Nc4 {[%emt 0:00:36] Strongly threatening Rxe7.} Be6 {[%emt 0:00:04]} 26. Re5 {[%emt 0:00:56]} Nd7 {[%emt 0:00:20]} 27. Re2 {[%emt 0:00:10]} N7f6 {[%emt 0:00:01]} 28. Qh4 {[%emt 0:00:30]} Qc7 {[%emt 0:00:11]} 29. Ne5 {[%emt 0:00:06]} Qb6 {[%emt 0:00:03]} 30. Rce1 {[%emt 0:00:09]} Qc7 {[%emt 0:00:37]} (30... Re8 $142 31. Nc4 Qd8) 31. f4 {[%emt 0:00:37][%cal Bf2f4,Bf4f5][%mdl 32]} Qc8 {[%emt 0:00:22]} 32. Nc4 {[%emt 0:00:12][%cal Of4f5]} b5 {[%emt 0:00:24]} 33. Ne5 {[%emt 0:00:40]} c5 {[%emt 0:00:02]} 34. dxc5 {[%emt 0:00:11]} Qxc5+ {[%emt 0:00:00]} 35. Qf2 {[%emt 0:00:04]} Qd6 {[%emt 0:00:18]} 36. f5 {[%emt 0:00:56]} Bc8 {[%emt 0:00:01]} 37. Ng4 {[%emt 0:00:25]} Rxe2 {[%emt 0:00:23]} 38. Rxe2 {[%emt 0:00:07]} (38. Bxe2 $18 Qc7 39. Bf3) 38... Bb7 {[%emt 0:00:04]} (38... Nxg4 $16 39. Re8+ (39. hxg4 Nf6 $14) 39... Kh7 40. f6+ (40. hxg4 Nf6 $11) 40... g6 41. hxg4 Be6) 39. Ne5 {[%emt 0:00:27]} Ne7 {[%emt 0:00:21]} (39... Nb6 {was necessary.} 40. Qe3 Bd5) 40. b4 {[%emt 0:00:12] Threatens to win with Qc5.} Qd5 {[%emt 0:00:05]} (40... Nc6 {was called for.}) 41. Qc5 {[%emt 0:00:07]} Qd8 {[%emt 0:00:05]} 42. Bc2 {[%emt 0:00:18]} Ned5 {[%emt 0:00:07]} 43. Rd2 {[%emt 0:00:21]} Qe8 {[%emt 0:00:02]} 44. Qd6 {[%emt 0:00:03]} Qc8 {[%emt 0:00:04]} (44... Kh7 $142 45. Re2 Nf4) 45. Qc5 {[%emt 0:00:23]} Qe8 {[%emt 0:00:04]} 46. Qd4 {[%emt 0:00:08]} Qc8 {[%emt 0:00:04]} 47. Nd3 {[%emt 0:00:13]} Qxf5 {[%emt 0:00:03]} (47... Bc6 $142 48. Nc5 Qe8) 48. Nc5 {[%emt 0:00:01][%csl LRb7,LRf5]} Qc8 {[%emt 0:00:09]} 49. Nxb7 {[%emt 0:00:05]} Qxb7 {[%emt 0:00:01]} 50. Be4 {[%emt 0:00:05]} Qb6 $2 {[%emt 0:00:04] [#]} (50... Nxe4 $18 51. Qxe4 Qb6+ 52. Qd4 Kf8 53. Qxb6 Nxb6) 51. Bxd5 {[%emt 0:00:05]} (51. Qxb6 $142 Nxe4 52. Rxd5 Nf6 53. Rd8+ Kh7 54. Qc5 g5 55. g4 Ng8 56. Qf8) 51... Nxd5 {[%emt 0:00:01]} 52. Qxb6 {[%emt 0:00:02]} Nxb6 {[%emt 0:00:01] KR-KN} 53. Rd8+ {[%emt 0:00:04]} Kh7 {[%emt 0:00:02]} 54. Rd6 {[%emt 0:00:01] White is clearly winning.} Nc4 {[%emt 0:00:01]} 55. Rxa6 {[%emt 0:00:01] [#] aiming for a4.} f5 {[%emt 0:00:03]} 56. a4 {[%emt 0:00:06]} bxa4 {[%emt 0:00:04]} 57. Rxa4 {[%emt 0:00:01] Weighted Error Value: White=0.28 (precise) /Black=0.40} (57. b5 $142 a3 58. b6 Nxb6 59. Rxb6) 1-0

[Event "Romanian GP Final KO 2023"]
[Site "Alba Iulia"]
[Date "2023.12.05"]
[Round "2.1"]
[White "Petkov, Momchil"]
[Black "Deac, Bogdan-Daniel"]
[Result "1/2-1/2"]
[ECO "D02"]
[WhiteElo "2499"]
[BlackElo "2690"]
[Annotator "TA"]
[PlyCount "64"]
[EventDate "2023.12.04"]
[EventType "k.o."]
[EventCountry "ROU"]
[SourceTitle "playchess.com"]
[Source "ChessBase"]
[SourceQuality "1"]
[TimeControl "900+5"]

{[%evp 10,64,-8,-6,2,13,4,12,39,12,28,-2,0,0,0,-6,-5,-3,-4,-15,-13,-27,-30,-29,-29,-24,-29,-27,-21,-48,-42,-41,-33,-39,-35,-45,-45,-45,-47,-45,-32,-52,-52,-152,-25,-18,0,0,0,0,0,0,0,0,18,0,5]} 1. d4 {[%emt 0:00:03]} Nf6 {[%emt 0:00:01]} 2. Bf4 {[%emt 0:00:02]} d5 {[%emt 0:00:04]} 3. Nf3 {[%emt 0:00:04]} c5 {[%emt 0:00:01]} 4. e3 {[%emt 0:00:02]} Nc6 {[%emt 0:00:02]} 5. c3 {[%emt 0:00:03]} Qb6 {[%emt 0:00:09]} 6. Qc2 {[%emt 0:00:01]} Nh5 {[%emt 0:01:04] D02: 1 d4 d5 2 Nf3 sidelines, including 2...Nf6 3 g3 and 2...Nf6 3 Bf4.} 7. Be5 $1 {[%emt 0:00:28] 7.Be5 scores better than 7.Bg3.} e6 {[%emt 0:00:40]} 8. Nbd2 {[%emt 0:01:09] [#]} Bd7 $146 {[%emt 0:00:20]} ({Predecessor:} 8... cxd4 9. exd4 Bd7 10. Bd3 Rc8 11. Qb3 f6 12. Bg3 g6 13. O-O Kf7 14. Rae1 Qxb3 15. axb3 {½-½ Le,T (2514)-Artemiev,V (2709) Titled Tuesday intern op 11th May blitz 2021 (6)}) 9. h3 {[%emt 0:01:16]} Rc8 {[%emt 0:00:41]} 10. Qb3 {[%emt 0:00:56]} Nxe5 {[%emt 0:02:22]} 11. Nxe5 {[%emt 0:00:04]} Bc6 {[%emt 0:00:06]} 12. Be2 {[%emt 0:01:27] [#] Hoping for Qxb6.} Nf6 {[%emt 0:00:06]} 13. O-O {[%emt 0:01:35]} Bd6 {[%emt 0:00:19]} 14. Nxc6 {[%emt 0:00:47]} bxc6 {[%emt 0:00:05]} 15. Qc2 {[%emt 0:00:30]} cxd4 {[%emt 0:01:02]} 16. cxd4 {[%emt 0:00:05]} O-O {[%emt 0:06:32]} 17. Nb3 {[%emt 0:00:03]} Nd7 {[%emt 0:00:17]} 18. Bd3 {[%emt 0:01:18]} h6 {[%emt 0:00:38]} 19. Qe2 {[%emt 0:02:19]} a5 {[%emt 0:00:08]} 20. Rab1 {[%emt 0:01:26]} Rb8 {[%emt 0:00:49]} 21. Rfc1 {[%emt 0:01:28]} Rfc8 {[%emt 0:00:32]} 22. Rc2 {[%emt 0:00:40]} a4 {[%emt 0:00:29]} 23. Nd2 {[%emt 0:00:01]} c5 {[%emt 0:00:01]} 24. dxc5 {[%emt 0:00:01]} Nxc5 {[%emt 0:00:12]} 25. Rbc1 {[%emt 0:00:20]} Rc7 {[%emt 0:00:05]} 26. Nf3 {[%emt 0:00:11] [#]} ({White should try} 26. b3 $15) 26... Nxd3 {[%emt 0:00:18]} ({Black should play} 26... e5 $1 $17 {[%cal Re5e4] ...e4 is the strong threat.} 27. Bf5 g6) 27. Qxd3 $11 {[%emt 0:00:06]} Rbc8 {[%emt 0:00:03][%cal Ob6b2] The position is equal.} 28. g3 {[%emt 0:00:46]} Be7 {[%emt 0:00:09]} 29. Rxc7 {[%emt 0:00:05]} Rxc7 {[%emt 0:00:01]} 30. Rxc7 {[%emt 0:00:03]} Qxc7 {[%emt 0:00:01]} 31. Qb5 {[%emt 0:00:12]} a3 {[%emt 0:00:16] Threatens to win with ...Qc1+.} 32. bxa3 {[%emt 0:00:03]} Bxa3 {[%emt 0:00:03] Weighted Error Value: White=0.12 (very precise) /Black=0.12 (very precise)} 1/2-1/2

[Event "Romanian GP Final KO 2023"]
[Site "Alba Iulia"]
[Date "2023.12.05"]
[Round "2.1"]
[White "Ghimpu, Samuel-Timotei"]
[Black "David, Alexandru-Vasile"]
[Result "1/2-1/2"]
[ECO "B50"]
[WhiteElo "2472"]
[BlackElo "2372"]
[Annotator "RC"]
[PlyCount "106"]
[EventDate "2023.12.04"]
[EventType "k.o."]
[EventCountry "ROU"]
[SourceTitle "playchess.com"]
[Source "ChessBase"]
[SourceQuality "1"]
[TimeControl "900+5"]

1. e4 {[%emt 0:00:03]} c5 {[%emt 0:00:01]} 2. Nf3 {[%emt 0:00:01]} d6 {[%emt 0:00:01]} 3. c3 {[%emt 0:00:24]} Nf6 {[%emt 0:00:02]} 4. h3 {[%emt 0:00:02]} g6 {[%emt 0:00:07]} 5. Qc2 {[%emt 0:00:02]} Bg7 {[%emt 0:00:03]} 6. d4 {[%emt 0:00:01]} O-O {[%emt 0:00:05]} 7. dxc5 {[%emt 0:00:19]} dxc5 {[%emt 0:00:19]} 8. Bc4 {[%emt 0:00:18]} Nc6 {[%emt 0:00:14]} 9. O-O {[%emt 0:00:32]} Qc7 {[%emt 0:00:04]} 10. Re1 {[%emt 0:00:25]} Nh5 {[%emt 0:00:06]} 11. Be3 {[%emt 0:01:24]} b6 {[%emt 0:01:44]} 12. Nbd2 {[%emt 0:00:53]} Bb7 {[%emt 0:00:12]} 13. a4 {[%emt 0:00:11]} Rad8 {[%emt 0:00:18]} 14. Rad1 {[%emt 0:00:27]} Ne5 {[%emt 0:01:21]} 15. Nxe5 {[%emt 0:00:24]} Qxe5 {[%emt 0:00:02]} 16. Bf1 {[%emt 0:00:31]} Qc7 {[%emt 0:01:00]} 17. a5 {[%emt 0:00:29]} Bc6 {[%emt 0:00:21]} 18. axb6 {[%emt 0:00:19]} axb6 {[%emt 0:00:01]} 19. Qb3 {[%emt 0:02:43]} Nf6 {[%emt 0:01:18]} 20. Bg5 {[%emt 0:03:41]} h6 {[%emt 0:00:16]} 21. Bh4 {[%emt 0:00:46]} Nh5 {[%emt 0:00:02]} 22. Be2 {[%emt 0:00:01]} Rxd2 {[%emt 0:00:20]} 23. Rxd2 {[%emt 0:00:28]} Qf4 {[%emt 0:00:02]} 24. Rdd1 {[%emt 0:01:06]} Qxh4 {[%emt 0:00:07]} 25. Bxh5 {[%emt 0:00:33]} Qxh5 {[%emt 0:00:04]} 26. Qxb6 {[%emt 0:00:20]} Bxe4 {[%emt 0:00:15]} 27. Qc7 {[%emt 0:00:01]} Ba8 {[%emt 0:00:36]} 28. Qxe7 {[%emt 0:00:16]} Qg5 {[%emt 0:00:07]} 29. Qxg5 {[%emt 0:00:11]} hxg5 {[%emt 0:00:02]} 30. Re7 {[%emt 0:00:07]} Bc6 {[%emt 0:01:32]} 31. Rc7 {[%emt 0:00:12]} Ba4 {[%emt 0:00:01]} 32. Ra1 {[%emt 0:00:04]} Bb3 {[%emt 0:00:02]} 33. Rxc5 {[%emt 0:00:05]} Rb8 {[%emt 0:00:17]} 34. Rca5 {[%emt 0:00:13]} Bf8 {[%emt 0:00:36]} 35. Rxg5 {[%emt 0:00:08]} Be6 {[%emt 0:00:38]} 36. b4 {[%emt 0:00:03]} Rc8 {[%emt 0:00:04]} 37. Rg3 {[%emt 0:00:18]} Bg7 {[%emt 0:00:08]} 38. Rc1 {[%emt 0:00:07]} Bh6 {[%emt 0:00:02]} 39. Rb1 {[%emt 0:00:02]} Bf5 {[%emt 0:00:16]} 40. Rd1 {[%emt 0:00:07]} Bg7 {[%emt 0:00:04]} 41. Rd5 {[%emt 0:00:04]} Be4 {[%emt 0:00:21]} 42. Rc5 {[%emt 0:00:02]} Rxc5 {[%emt 0:00:31]} 43. bxc5 {[%emt 0:00:01]} Bf8 {[%emt 0:00:01]} 44. Rg4 {[%emt 0:00:11]} Bf5 {[%emt 0:00:20]} 45. Rc4 {[%emt 0:00:06]} Be6 {[%emt 0:00:01]} 46. Re4 {[%emt 0:00:04]} Bxc5 {[%emt 0:00:03]} 47. Re5 {[%emt 0:00:02]} Bd6 {[%emt 0:00:11]} 48. Ra5 {[%emt 0:00:02]} Kg7 {[%emt 0:00:06]} 49. h4 {[%emt 0:00:06]} Kf6 {[%emt 0:00:06]} 50. g3 {[%emt 0:00:04]} Be5 {[%emt 0:00:17]} 51. Rc5 {[%emt 0:00:01]} Bd6 {[%emt 0:00:03]} 52. Ra5 {[%emt 0:00:06]} Be5 {[%emt 0:00:03]} 53. Rc5 {[%emt 0:00:07]} Bd6 {[%emt 0:00:03]} 1/2-1/2